fUST/lending_fUST_20260315
["ID","MTS","AMOUNT","RATE_DAILY","PERIOD"]
[408366989,1773504005226,151.0,0.000102,120]
[408366990,1773504041109,151.0,0.000102,120]
[408366991,1773504081976,-4716.52750124,8.1e-05,2]
[408366992,1773504084742,151.0,0.000102,120]
[408366993,1773504125095,151.0,0.000102,120]
[408367004,1773504164925,151.0,0.000102,120]
[408367008,1773504207032,151.0,0.000102,120]
[408367009,1773504237716,151.0,0.000102,120]
[408367010,1773504276968,151.0,0.000102,120]
[408367011,1773504312076,151.0,0.000102,120]
[408367014,1773504345153,151.0,0.000102,120]
[408367015,1773504385023,151.0,0.000102,120]
[408367016,1773504415566,151.0,0.000102,120]
[408367020,1773504443121,-5000.0,8.002e-05,2]
[408367021,1773504443144,-769.34078598,8.165e-05,2]
[408367022,1773504446497,151.0,0.000102,120]
[408367032,1773504481987,151.0,0.000102,120]
[408367033,1773504517165,151.0,0.000102,120]
[408367035,1773504554818,151.0,0.000102,120]
[408367036,1773504596768,151.0,0.000102,120]
[408367041,1773504631739,-563.0,8.082e-05,2]
[408367043,1773504631750,-5000.0,8.083e-05,2]
[408367045,1773504631761,-534.0,8.083e-05,2]
[408367047,1773504631772,-595.62946955,8.165e-05,2]
[408367049,1773504631782,-267.06983468,8.176e-05,7]
[408367051,1773504631794,-300.0,8.263e-05,2]
[408367053,1773504631804,-223.0,8.263e-05,2]
[408367055,1773504631815,-300.0,8.264e-05,2]
[408367057,1773504631825,-3101.12441035,8.265e-05,2]
[408367059,1773504631836,-1776.69277918,8.365e-05,2]
[408367062,1773504631848,-1660.36036537,8.365e-05,2]
[408367064,1773504631858,-4345.10548882,8.465e-05,2]
[408367066,1773504631869,-14865.54046292,8.465e-05,2]
[408367069,1773504631890,-2711.43230879,8.465e-05,2]
[408367071,1773504631903,-7703.11114865,8.465e-05,2]
[408367074,1773504631922,-2924.05903795,8.465e-05,2]
[408367170,1773504636901,151.0,0.000102,120]
[408367181,1773504637999,-1000.0,8.465e-05,2]
[408367182,1773504638011,-16450.75155287,8.465e-05,2]
[408367183,1773504638021,-3440.20974268,8.465e-05,2]
[408367184,1773504638030,-3779.29507508,8.565e-05,2]
[408367185,1773504638040,-500.0,8.602e-05,2]
[408367186,1773504638049,-500.0,8.627e-05,2]
[408367187,1773504638058,-627.09217267,8.627e-05,2]
[408367188,1773504638068,-304.73357036,8.627e-05,2]
[408367190,1773504638078,-500.0,8.627e-05,2]
[408367192,1773504638087,-2150.738,8.628e-05,2]
[408367194,1773504638096,-5376.845,8.628e-05,2]
[408367196,1773504638105,-300.0,8.633e-05,2]
[408367198,1773504638115,-300.0,8.633e-05,2]
[408367200,1773504638124,-300.0,8.633e-05,2]
[408367202,1773504638133,-300.0,8.633e-05,2]
[408367204,1773504638142,-300.0,8.633e-05,2]
[408367206,1773504638151,-300.0,8.633e-05,2]
[408367208,1773504638161,-300.0,8.633e-05,2]
[408367210,1773504638170,-300.0,8.633e-05,2]
[408367212,1773504638180,-300.0,8.633e-05,2]
[408367214,1773504638189,-300.0,8.633e-05,2]
[408367216,1773504638198,-300.0,8.633e-05,2]
[408367218,1773504638207,-300.0,8.633e-05,2]
[408367220,1773504638216,-300.0,8.633e-05,2]
[408367222,1773504638225,-300.0,8.633e-05,2]
[408367224,1773504638234,-300.0,8.633e-05,2]
[408367226,1773504638244,-5575.788265,8.683e-05,2]
[408367228,1773504638254,-2124.58433286,8.738e-05,2]
[408367230,1773504638263,-600.0,8.805e-05,2]
[408367232,1773504638273,-500.0,8.873e-05,2]
[408367234,1773504638282,-500.0,8.873e-05,2]
[408367236,1773504638291,-500.0,8.963e-05,2]
[408367238,1773504638300,-551.82542823,8.963e-05,2]
[408367240,1773504638310,-226.70877458,8.963e-05,2]
[408367242,1773504638320,-641.97272046,8.963e-05,2]
[408367244,1773504638329,-500.0,8.963e-05,2]
[408367247,1773504638343,-500.0,8.963e-05,2]
[408367249,1773504638353,-500.0,8.963e-05,2]
[408367251,1773504638363,-500.0,8.963e-05,2]
[408367253,1773504638372,-302.51638282,8.963e-05,2]
[408367255,1773504638381,-500.0,8.963e-05,2]
[408367257,1773504638390,-256.46009201,8.963e-05,2]
[408367259,1773504638400,-458.98409382,8.963e-05,2]
[408367261,1773504638409,-557.5788265,8.981e-05,2]
[408367263,1773504638418,-1121264.3672774,8.987e-05,2]
[408367265,1773504638430,-421223.14588024,8.987e-05,2]
[408367267,1773504638441,-922.41053827,8.987e-05,2]
[408367311,1773504640579,-500.0,8.464e-05,2]
[408367312,1773504640589,-500.0,8.464e-05,2]
[408367313,1773504640600,-208.79601075,8.464e-05,2]
[408367314,1773504640611,-500.0,8.464e-05,2]
[408367315,1773504640622,-500.0,8.464e-05,2]
[408367316,1773504640633,-500.0,8.464e-05,2]
[408367317,1773504640643,-500.0,8.464e-05,2]
[408367318,1773504640653,-500.0,8.464e-05,2]
[408367321,1773504640924,-500.0,8.464e-05,2]
[408367322,1773504640933,-500.0,8.464e-05,2]
[408367323,1773504640943,-224.05926502,8.464e-05,2]
[408367324,1773504640954,-393.52877297,8.464e-05,2]
[408367325,1773504640963,-500.0,8.464e-05,2]
[408367326,1773504640973,-237.47946686,8.464e-05,2]
[408367327,1773504640983,-500.0,8.464e-05,2]
[408367328,1773504640997,-7779.53648438,8.987e-05,2]
[408367329,1773504641009,-3734.58501644,8.987e-05,2]
[408367337,1773504643130,-639.09253772,8.987e-05,2]
[408367338,1773504643142,-844436.86226555,8.987e-05,2]
[408367339,1773504643151,-5000.0,9e-05,2]
[408367340,1773504643161,-5000.0,9e-05,2]
[408367341,1773504643174,-363.235,9.087e-05,2]
[408367342,1773504643184,-305.0,9.089e-05,2]
[408367343,1773504643194,-420.0,9.09e-05,2]
[408367344,1773504643204,-2230.315306,9.176e-05,2]
[408367345,1773504643214,-500.0,9.2e-05,2]
[408367346,1773504643223,-513.71,9.2e-05,2]
[408367347,1773504643232,-697.60537834,9.421e-05,2]
[408367348,1773504643242,-1000.0,9.421e-05,2]
[408367349,1773504643251,-830.80063294,9.511e-05,2]
[408367350,1773504643259,-915.56140641,9.511e-05,2]
[408367351,1773504643268,-1135.01358848,9.511e-05,2]
[408367353,1773504643278,-1000.0,9.511e-05,2]
[408367355,1773504643287,-1000.0,9.511e-05,2]
[408367357,1773504643297,-4131.68189562,9.567e-05,2]
[408367359,1773504643307,-720.0,9.685e-05,2]
[408367361,1773504643315,-2312.83697232,9.724e-05,2]
[408367363,1773504643323,-500.0,9.813e-05,2]
[408367364,1773504643333,-500.0,9.813e-05,2]
[408367365,1773504643343,-500.0,9.813e-05,2]
[408367366,1773504643353,-500.0,9.813e-05,2]
[408367367,1773504643363,-422.80634748,9.813e-05,2]
[408367368,1773504643372,-500.0,9.813e-05,2]
[408367369,1773504643381,-500.0,9.813e-05,2]
[408367370,1773504643391,-1000000.0,9.9e-05,2]
[408367371,1773504643400,-3344.9595843,9.934e-05,2]
[408367372,1773504643409,-27978.0194269,9.934e-05,2]
[408367373,1773504643418,-1179.76066609,9.996e-05,2]
[408367374,1773504643427,-587.0,9.999e-05,2]
[408367375,1773504643437,-11207.15691302,0.0001,2]
[408367376,1773504643446,-388.33190562,0.0001,2]
[408367377,1773504643456,-332.85591911,0.0001,2]
[408367378,1773504643465,-388.33190562,0.0001,2]
[408367379,1773504643475,-518.90300617,0.00010058,2]
[408367380,1773504643484,-351.0,0.000102,2]
[408367381,1773504643494,-351.0,0.000102,2]
[408367382,1773504643503,-351.0,0.000102,2]
[408367383,1773504643512,-351.0,0.000102,2]
[408367384,1773504643521,-351.0,0.000102,2]
[408367385,1773504643530,-158512.9097149,0.00010213,120]
[408367386,1773504643539,-500.0,0.00010273,2]
[408367387,1773504643548,-500.0,0.00010361,2]
[408367388,1773504643556,-1080.66943725,0.00010361,2]
[408367389,1773504643565,-500.90459809,0.00010361,2]
[408367390,1773504643575,-1000.0,0.00010361,2]
[408367391,1773504643584,-500.0,0.00010361,2]
[408367392,1773504643593,-202.68692811,0.00010576,2]
[408367393,1773504643603,-864.0,0.00010654,2]
[408367394,1773504643613,-150.0,0.00010896,2]
[408367395,1773504643622,-150.0,0.00010896,2]
[408367396,1773504643631,-200.0,0.00010959,2]
[408367397,1773504643640,-33244.49613587,0.00011,2]
[408367398,1773504643649,-151.0,0.00011,2]
[408367399,1773504643659,-244.33861284,0.00011021,2]
[408367400,1773504643669,-1394.0,0.00011208,2]
[408367401,1773504643678,-2196.0,0.00011208,2]
[408367402,1773504643687,-437.0,0.00011208,2]
[408367403,1773504643696,-734.0,0.00011208,2]
[408367404,1773504643705,-183.0,0.00011208,2]
[408367405,1773504643714,-640.0,0.00011248,2]
[408367406,1773504643724,-6242.7399553,0.00011616,2]
[408367407,1773504643733,-1000.0,0.00011719,2]
[408367408,1773504643742,-1392.943566,0.00011991,2]
[408367409,1773504643752,-1048.0,0.00012,2]
[408367410,1773504643761,-15380.3736,0.00012055,2]
[408367411,1773504643771,-5000.0,0.00012134,2]
[408367412,1773504643781,-166.5357315,0.00012157,2]
[408367413,1773504643791,-1000.0,0.00012891,2]
[408367414,1773504643800,-244.0,0.00012891,2]
[408367415,1773504643809,-812.4724584,0.000129,2]
[408367416,1773504643818,-812.47245836,0.000129,2]
[408367417,1773504643827,-272.89767148,0.00013021,2]
[408367418,1773504643837,-812.47245836,0.00013297,2]
[408367419,1773504643846,-16531.29609698,0.00013599,2]
[408367420,1773504643855,-151.0,0.000136,2]
[408367421,1773504643864,-156.0,0.00013699,2]
[408367422,1773504643874,-180.0,0.00013699,2]
[408367423,1773504643883,-664.02502,0.00013699,2]
[408367424,1773504643892,-1000.0,0.00013699,2]
[408367425,1773504643902,-151.0,0.00013699,2]
[408367426,1773504643915,-151.0,0.00013699,2]
[408367427,1773504643925,-182.29373,0.00013699,2]
[408367428,1773504643934,-500.0,0.00013699,2]
[408367429,1773504643943,-500.0,0.00013699,2]
[408367430,1773504643954,-2000.0,0.00013699,7]
[408367431,1773504643963,-1000.0,0.00013699,2]
[408367432,1773504643974,-1500.0,0.00013699,2]
[408367433,1773504643984,-399.68976503,0.000137,2]
[408367434,1773504643994,-500.0,0.000137,2]
[408367435,1773504644004,-500.0,0.000137,2]
[408367436,1773504644013,-500.0,0.000137,2]
[408367437,1773504644025,-500.0,0.000137,2]
[408367438,1773504644035,-500.0,0.000137,2]
[408367439,1773504644045,-500.0,0.000137,2]
[408367440,1773504644055,-500.0,0.000137,2]
[408367441,1773504644065,-160.0,0.00013783,2]
[408367442,1773504644075,-151.0,0.00014,2]
[408367443,1773504644084,-2000.0,0.00014014,7]
[408367444,1773504644094,-4731.61857842,0.0001404,2]
[408367445,1773504644104,-196.59209512,0.00014072,2]
[408367446,1773504644113,-500.0,0.00014163,2]
[408367447,1773504644122,-500.0,0.00014163,2]
[408367448,1773504644132,-1000.0,0.0001418,2]
[408367449,1773504644141,-492.0,0.0001418,2]
[408367450,1773504644150,-1394.0,0.00014208,2]
[408367451,1773504644159,-749.895,0.00014208,2]
[408367452,1773504644168,-437.0,0.00014208,2]
[408367453,1773504644178,-734.0,0.00014208,2]
[408367454,1773504644187,-183.0,0.00014208,2]
[408367455,1773504644196,-1000.0,0.00014247,2]
[408367456,1773504644205,-1000.0,0.00014247,2]
[408367457,1773504644215,-1000.0,0.00014248,2]
[408367458,1773504644224,-1000.0,0.00014248,2]
[408367459,1773504644234,-312.84454219,0.00014248,2]
[408367460,1773504644242,-1000.0,0.00014248,2]
[408367461,1773504644251,-828.26438352,0.00014248,2]
[408367462,1773504644261,-1103.47229635,0.00014248,2]
[408367463,1773504644270,-299.48211275,0.00014248,2]
[408367464,1773504644279,-640.0,0.00014248,2]
[408367465,1773504644288,-2000.0,0.00014329,7]
[408367466,1773504644298,-151.0,0.000145,2]
[408367467,1773504644307,-364.47163413,0.00014507,2]
[408367468,1773504644316,-151.0,0.000146,2]
[408367469,1773504644325,-2000.0,0.00014644,7]
[408367470,1773504644334,-1000.0,0.0001471,2]
[408367471,1773504644343,-721.40655934,0.0001471,2]
[408367472,1773504644352,-1500.0,0.00014795,2]
[408367473,1773504644362,-1500.0,0.00014795,2]
[408367474,1773504644371,-1045.25592744,0.00014796,2]
[408367475,1773504644380,-1500.0,0.00014796,2]
[408367476,1773504644389,-1500.0,0.00014796,2]
[408367477,1773504644399,-186.6626492,0.00014844,2]
[408367478,1773504644408,-1178.18786975,0.00014869,14]
[408367479,1773504644417,-2000.0,0.00014959,7]
[408367480,1773504644427,-14158.0,0.00015,2]
[408367481,1773504644437,-3580.0,0.00015,2]
[408367482,1773504644446,-1006.36308968,0.00015,7]
[408367483,1773504644455,-270.83333333,0.00015,2]
[408367484,1773504644464,-301.45673012,0.00015021,2]
[408367485,1773504644474,-400.510456,0.00015068,2]
[408367486,1773504644483,-1248.15042062,0.00015083,14]
[408367487,1773504644492,-151.0,0.000152,2]
[408367488,1773504644502,-1500.0,0.00015258,2]
[408367489,1773504644511,-2000.0,0.00015274,7]
[408367490,1773504644520,-1248.15042062,0.00015325,14]
[408367491,1773504644530,-2000.0,0.00015342,2]
[408367492,1773504644539,-331.16986666,0.00015342,2]
[408367493,1773504644548,-2000.0,0.00015344,2]
[408367494,1773504644558,-2000.0,0.00015344,2]
[408367495,1773504644567,-151.0,0.000154,2]
[408367496,1773504644576,-1248.15042062,0.00015567,14]
[408367497,1773504644586,-1291.0,0.00015567,2]
[408367498,1773504644595,-2000.0,0.00015589,7]
[408367499,1773504644604,-1000.0,0.00015598,2]
[408367500,1773504644614,-791.0,0.00015598,2]
[408367501,1773504644623,-5000.0,0.0001564,2]
[408367502,1773504644632,-186.6626492,0.00015666,2]
[408367503,1773504644641,-454.8646277,0.00015666,2]
[408367504,1773504644651,-812.47245836,0.00015763,2]
[408367505,1773504644660,-151.0,0.000158,2]
[408367506,1773504644670,-1034.57742289,0.00015806,2]
[408367507,1773504644679,-1248.15042062,0.00015809,14]
[408367508,1773504644688,-186.6626492,0.00015849,2]
[408367509,1773504644697,-823.29644751,0.0001589,2]
[408367510,1773504644707,-669.52587631,0.00015892,2]
[408367511,1773504644720,-1830.47412369,0.00015892,2]
[408367512,1773504644729,-190.83139735,0.00015892,2]
[408367515,1773504645992,-12830.4739967,8.897e-05,2]
[408367516,1773504646002,-1170.74388282,0.00014554,14]
[408367517,1773504646012,-1170.74388282,0.00014807,14]
[408367518,1773504646021,-2309.16860265,0.00015892,2]
[408367519,1773504646031,-500.0,0.000159,2]
[408367520,1773504646040,-500.0,0.000159,2]
[408367521,1773504646049,-2000.0,0.00015904,7]
[408367522,1773504646059,-217.42648093,0.00016,2]
[408367523,1773504646068,-3000.0,0.00016,2]
[408367524,1773504646077,-3000.0,0.0001601,2]
[408367525,1773504646086,-3000.0,0.0001602,2]
[408367526,1773504646095,-3000.0,0.0001603,2]
[408367527,1773504646105,-3000.0,0.0001604,2]
[408367528,1773504646115,-3000.0,0.0001605,2]
[408367529,1773504646124,-1248.15042062,0.00016051,30]
[408367530,1773504646133,-3000.0,0.0001606,2]
[408367531,1773504646143,-3000.0,0.0001607,2]
[408367532,1773504646151,-3000.0,0.0001608,2]
[408367533,1773504646160,-3000.0,0.0001609,2]
[408367534,1773504646169,-3000.0,0.000161,2]
[408367535,1773504646178,-3000.0,0.0001611,2]
[408367536,1773504646187,-500.0,0.00016113,2]
[408367537,1773504646197,-613.78099888,0.00016113,2]
[408367538,1773504646206,-500.0,0.00016113,2]
[408367539,1773504646215,-500.0,0.00016113,2]
[408367540,1773504646224,-3000.0,0.0001612,2]
[408367541,1773504646233,-521.0,0.00016121,2]
[408367542,1773504646242,-3000.0,0.0001613,2]
[408367543,1773504646251,-3000.0,0.0001614,2]
[408367544,1773504646260,-3000.0,0.0001615,2]
[408367545,1773504646269,-3000.0,0.0001616,2]
[408367546,1773504646278,-3000.0,0.0001617,2]
[408367547,1773504646287,-3000.0,0.0001618,2]
[408367548,1773504646297,-3000.0,0.0001619,2]
[408367549,1773504646306,-3000.0,0.000162,2]
[408367550,1773504646315,-3000.0,0.0001621,2]
[408367551,1773504646324,-2000.0,0.00016219,7]
[408367552,1773504646333,-3000.0,0.0001622,2]
[408367553,1773504646343,-5901.62923,0.0001623,2]
[408367554,1773504646353,-482.84505071,0.00016245,2]
[408367555,1773504646362,-1248.15042062,0.00016293,30]
[408367556,1773504646371,-151.0,0.000163,2]
[408367557,1773504646381,-158.0,0.000164,2]
[408367558,1773504646390,-151.0,0.000164,2]
[408367559,1773504646399,-161.19901987,0.00016411,3]
[408367560,1773504646409,-200.0,0.00016438,2]
[408367561,1773504646419,-3404.0,0.00016438,2]
[408367562,1773504646428,-163.487195,0.00016438,2]
[408367563,1773504646438,-163.487195,0.00016438,2]
[408367564,1773504646447,-163.487195,0.00016438,2]
[408367565,1773504646456,-163.487195,0.00016438,2]
[408367566,1773504646466,-163.487195,0.00016438,2]
[408367567,1773504646475,-163.487195,0.00016438,2]
[408367568,1773504646485,-163.487195,0.00016438,2]
[408367569,1773504646494,-163.487195,0.00016438,2]
[408367570,1773504646504,-163.487195,0.00016438,2]
[408367571,1773504646514,-163.487195,0.00016438,2]
[408367572,1773504646523,-163.487195,0.00016438,2]
[408367573,1773504646533,-163.487195,0.00016438,2]
[408367574,1773504646542,-163.487195,0.00016438,2]
[408367575,1773504646552,-163.487195,0.00016438,2]
[408367576,1773504646561,-163.487195,0.00016438,2]
[408367577,1773504646570,-163.487195,0.00016438,2]
[408367578,1773504646580,-163.487195,0.00016438,2]
[408367579,1773504646589,-163.487195,0.00016438,2]
[408367580,1773504646599,-163.487195,0.00016438,2]
[408367581,1773504646608,-163.48719781,0.00016438,2]
[408367582,1773504646617,-151.0,0.00016438,2]
[408367583,1773504646627,-151.0,0.00016438,2]
[408367584,1773504646636,-151.0,0.00016438,2]
[408367585,1773504646645,-151.0,0.00016438,2]
[408367586,1773504646654,-151.0,0.00016438,2]
[408367587,1773504646663,-151.0,0.00016438,2]
[408367588,1773504646672,-151.0,0.00016438,2]
[408367589,1773504646681,-151.0,0.00016438,2]
[408367590,1773504646690,-151.0,0.00016438,2]
[408367591,1773504646700,-151.0,0.00016438,2]
[408367592,1773504646709,-151.0,0.00016438,2]
[408367593,1773504646719,-274.99359,0.00016438,2]
[408367594,1773504646728,-3000.0,0.0001644,2]
[408367595,1773504646737,-3000.0,0.0001644,2]
[408367596,1773504646746,-1000.0,0.00016448,2]
[408367597,1773504646755,-1000.0,0.00016448,2]
[408367598,1773504646764,-195.8296901,0.00016488,2]
[408367599,1773504646774,-158.0,0.000165,2]
[408367600,1773504646783,-2000.0,0.00016534,7]
[408367601,1773504646793,-1248.15042062,0.00016535,30]
[408367602,1773504646803,-165.47198604,0.00016625,2]
[408367603,1773504646811,-1000.0,0.0001666,2]
[408367604,1773504646820,-1000.0,0.0001666,2]
[408367605,1773504646829,-1000.0,0.0001666,2]
[408367606,1773504646839,-196.1323308,0.00016671,2]
[408367607,1773504646848,-160.0,0.00016783,2]
[408367608,1773504646857,-161.87281991,0.000168,2]
[408367609,1773504646865,-67168.38582058,0.0001683,2]
[408367610,1773504647367,-23924.07310326,0.0001683,2]
[408367611,1773504647378,-3119.98807425,0.0001683,2]
[408367612,1773504647387,-318.24153682,0.0001683,2]
[408367613,1773504647398,-40006.1037569,0.0001683,2]
[408367614,1773504647409,-3370.47150791,0.0001683,2]
[408367615,1773504647438,-14522.48712119,0.0001683,2]
[408367616,1773504647448,-2000.0,0.00016849,7]
[408367617,1773504647457,-451.81565957,0.00016988,2]
[408367618,1773504647466,-3500.0,0.00016988,2]
[408367619,1773504647475,-1500.0,0.00016996,2]
[408367620,1773504647484,-1500.0,0.00016996,2]
[408367621,1773504647493,-10000.0,0.00017,7]
[408367622,1773504647502,-28788.87944937,0.00017,2]
[408367623,1773504647628,-641.03786511,0.00017,2]
[408367624,1773504667181,151.0,0.000102,120]
[408367625,1773504697941,151.0,0.000102,120]
[408367626,1773504732240,151.0,0.000102,120]
[408367627,1773504767123,151.0,0.000102,120]
[408367628,1773504812263,151.0,0.000102,120]
[408367629,1773504846951,151.0,0.000102,120]
[408367630,1773504882171,151.0,0.000102,120]
[408367631,1773504925428,151.0,0.000102,120]
[408367632,1773504956094,151.0,0.000102,120]
[408367633,1773504986505,151.0,0.000102,120]
[408367634,1773505017059,151.0,0.000102,120]
[408367635,1773505057467,151.0,0.000102,120]
[408367636,1773505105290,151.0,0.000102,120]
[408367637,1773505137194,151.0,0.000102,120]
[408367640,1773505184839,151.0,0.000102,120]
[408367641,1773505227040,151.0,0.000102,120]
[408367642,1773505266223,151.0,0.000102,120]
[408367643,1773505307150,151.0,0.000102,120]
[408367644,1773505347161,151.0,0.000102,120]
[408367645,1773505386131,151.0,0.000102,120]
[408367646,1773505417091,151.0,0.000102,120]
[408367647,1773505455409,151.0,0.000102,120]
[408367648,1773505492052,151.0,0.000102,120]
[408367649,1773505530377,151.0,0.000102,120]
[408367650,1773505565321,151.0,0.000102,120]
[408367651,1773505596248,151.0,0.000102,120]
[408367652,1773505651836,151.0,0.000102,120]
[408367653,1773505695133,151.0,0.000102,120]
[408367654,1773505737125,151.0,0.000102,120]
[408367655,1773505775421,151.0,0.000102,120]
[408367656,1773505802740,176.41,2e-05,2]
[408367657,1773505812921,151.0,0.000102,120]
[408367668,1773505832018,-5000.0,7.795e-05,2]
[408367671,1773505832027,-0.93000574,7.874e-05,2]
[408367693,1773505838023,-3750.03809953,7.795e-05,2]
[408367709,1773505840561,-1249.96190047,7.795e-05,2]
[408367711,1773505840571,-4999.06999426,7.874e-05,2]
[408367713,1773505840580,-531.0,7.874e-05,2]
[408367715,1773505840589,-300.0,8.195e-05,2]
[408367717,1773505840599,-300.0,8.195e-05,2]
[408367720,1773505840609,-300.0,8.195e-05,2]
[408367722,1773505840618,-290.588,8.198e-05,2]
[408367724,1773505840628,-500.0,8.243e-05,2]
[408367726,1773505840637,-461.67526834,8.26e-05,2]
[408367728,1773505840647,-168.3888056,8.26e-05,2]
[408367730,1773505840656,-557.5788265,8.26e-05,2]
[408367732,1773505840666,-151.29287465,8.26e-05,2]
[408367734,1773505840675,-1994.52511912,8.26e-05,2]
[408367736,1773505840687,-235.79018688,8.26e-05,2]
[408367738,1773505840696,-438.96452087,8.264e-05,2]
[408367740,1773505840705,-500.0,8.264e-05,2]
[408367742,1773505840714,-500.0,8.264e-05,2]
[408367744,1773505840723,-413.31349925,8.264e-05,2]
[408367746,1773505840732,-1278.031793,8.265e-05,2]
[408367748,1773505840743,-710.17006101,8.265e-05,2]
[408367750,1773505840755,-1125.34589103,8.265e-05,2]
[408367916,1773505843181,-2000.0,8.265e-05,2]
[408367917,1773505843206,-7564.04153964,8.265e-05,2]
[408367918,1773505843222,-559591.28896471,8.265e-05,2]
[408367920,1773505843231,-468.13493392,8.281e-05,2]
[408367922,1773505843240,-537.10925826,8.281e-05,2]
[408367924,1773505843249,-500.0,8.343e-05,2]
[408367926,1773505843259,-500.0,8.343e-05,2]
[408367928,1773505843268,-300.0,8.531e-05,2]
[408367930,1773505843277,-300.0,8.531e-05,2]
[408367932,1773505843286,-300.0,8.531e-05,2]
[408367934,1773505843295,-300.0,8.531e-05,2]
[408367936,1773505843304,-300.0,8.531e-05,2]
[408367938,1773505843313,-1001.16724676,8.891e-05,2]
[408367940,1773505843322,-1000.0,8.891e-05,2]
[408367942,1773505843331,-420.0,9.015e-05,2]
[408367944,1773505843340,-403.0,9.916e-05,2]
[408367946,1773505843349,-301.16666667,0.000102,2]
[408367948,1773505843358,-150.58333333,0.000102,2]
[408367950,1773505843368,-215.39927702,0.00010565,2]
[408367952,1773505843377,-151.0,0.000118,2]
[408367954,1773505843387,-15380.3736,0.00012055,2]
[408367956,1773505843400,-1394.0,0.00012098,2]
[408367959,1773505843410,-2195.0,0.00012098,2]
[408367961,1773505843419,-640.0,0.00012098,2]
[408367963,1773505843428,-437.0,0.00012098,2]
[408367966,1773505843438,-737.183,0.00012098,2]
[408367968,1773505843447,-183.0,0.00012098,2]
[408367970,1773505843457,-151.0,0.000126,2]
[408367972,1773505843469,-151.0,0.000135,2]
[408367974,1773505843478,-332.01251,0.00013699,2]
[408367976,1773505843487,-2000.0,0.00013699,7]
[408367978,1773505843496,-368.50031676,0.00013699,2]
[408367980,1773505843505,-1000.0,0.00013699,2]
[408367982,1773505843514,-1500.0,0.00013699,2]
[408367984,1773505843523,-500.0,0.00013737,2]
[408367986,1773505843532,-241.29179359,0.00014224,2]
[408367988,1773505843541,-151.0,0.000143,2]
[408367990,1773505843550,-305.18332468,0.000149,2]
[408367991,1773505843560,-305.18332467,0.000149,2]
[408367993,1773505843568,-305.18332467,0.000149,2]
[408367995,1773505843577,-270.83333333,0.00015,2]
[408367997,1773505843587,-1170.74388282,0.0001506,14]
[408367999,1773505843596,-320.408364,0.00015068,2]
[408368001,1773505843605,-1392.0,0.00015098,2]
[408368003,1773505843614,-280.284,0.00015098,2]
[408368005,1773505843624,-437.0,0.00015098,2]
[408368007,1773505843633,-183.0,0.00015098,2]
[408368009,1773505843643,-151.0,0.000151,2]
[408368012,1773505843652,-1170.74388282,0.00015313,14]
[408368014,1773505843662,-161.71413526,0.00015502,2]
[408368015,1773505843671,-2000.0,0.0001551,7]
[408368018,1773505843680,-1170.74388282,0.00015566,14]
[408368020,1773505843690,-5000.0,0.0001564,2]
[408368021,1773505843699,-1170.74388282,0.00015819,14]
[408368023,1773505843711,-151.0,0.000159,2]
[408368025,1773505843720,-237.10215984,0.00016,5]
[408368027,1773505843730,-500.0,0.00016,7]
[408368029,1773505843740,-500.0,0.00016,7]
[408368031,1773505843750,-500.0,0.00016,7]
[408368034,1773505843759,-500.0,0.00016,7]
[408368036,1773505843770,-500.0,0.00016,7]
[408368038,1773505843780,-500.0,0.00016,7]
[408368040,1773505843789,-500.0,0.00016,7]
[408368042,1773505843799,-500.0,0.00016,7]